[Event "*** Qualifier 2: Titled Tuesday 3|2 Blitz"]
[Site "Chess.com"]
[Date "2017.04.11"]
[Round "4"]
[White "rst2003"]
[Black "Aragon"]
[Result "1-0"]
[WhiteElo "2121"]
[BlackElo "2127"]
[TimeControl "180+2"]
[EndTime "13:52:43 PDT"]
[Termination "rst2003 won by resignation"]

1. e4 {[%clk 0:03:02]} 1... d5 {[%clk 0:02:57.6]} 2. exd5 {[%clk 0:03:02.5]}
2... Qxd5 {[%clk 0:02:57.6]} 3. Nc3 {[%clk 0:03:03.4]} 3... Qd6 {[%clk
0:02:58.9]} 4. d4 {[%clk 0:03:02.3]} 4... c6 {[%clk 0:03:00.2]} 5. g3 {[%clk
0:02:55.3]} 5... Nf6 {[%clk 0:03:00.7]} 6. Bg2 {[%clk 0:02:56.1]} 6... Bg4
{[%clk 0:02:58.5]} 7. Nge2 {[%clk 0:02:52.4]} 7... e6 {[%clk 0:02:59.5]} 8. h3
{[%clk 0:02:52.7]} 8... Bf5 {[%clk 0:02:56.6]} 9. O-O {[%clk 0:02:49.6]} 9...
Qd8 {[%clk 0:02:51.8]} 10. Bf4 {[%clk 0:02:37.6]} 10... Bd6 {[%clk 0:02:50.4]}
11. Qd2 {[%clk 0:02:32.1]} 11... Bxf4 {[%clk 0:02:48.4]} 12. Nxf4 {[%clk
0:02:30.5]} 12... Nbd7 {[%clk 0:02:39.6]} 13. Rfe1 {[%clk 0:02:23.5]} 13... O-O
{[%clk 0:02:39.2]} 14. Rad1 {[%clk 0:02:10.6]} 14... Qb6 {[%clk 0:02:38.5]} 15.
g4 {[%clk 0:02:09.3]} 15... Bg6 {[%clk 0:02:36.6]} 16. b3 {[%clk 0:01:55.9]}
16... Qc7 {[%clk 0:02:33.1]} 17. Nxg6 {[%clk 0:01:26.4]} 17... hxg6 {[%clk
0:02:31.9]} 18. Ne2 {[%clk 0:01:26.3]} 18... Rfd8 {[%clk 0:02:26.3]} 19. Ng3
{[%clk 0:01:19.6]} 19... a5 {[%clk 0:02:19.6]} 20. c4 {[%clk 0:01:15.7]} 20...
a4 {[%clk 0:02:17.3]} 21. g5 {[%clk 0:01:16.6]} 21... Nh7 {[%clk 0:02:06.1]} 22.
h4 {[%clk 0:01:17.1]} 22... axb3 {[%clk 0:02:00.3]} 23. axb3 {[%clk 0:01:16.9]}
23... Qb6 {[%clk 0:02:01.2]} 24. Qc2 {[%clk 0:01:11.5]} 24... Ra3 {[%clk
0:01:55.5]} 25. Re3 {[%clk 0:01:05.6]} 25... Rc8 {[%clk 0:01:44.9]} 26. Bh3
{[%clk 0:00:55.3]} 26... Ndf8 {[%clk 0:01:28]} 27. Rf3 {[%clk 0:00:27.2]} 27...
Rd8 {[%clk 0:01:20.8]} 28. Ne2 {[%clk 0:00:21.2]} 28... Qa5 {[%clk 0:01:09.9]}
29. Qe4 {[%clk 0:00:20.1]} 29... Qb4 {[%clk 0:00:58.2]} 30. Qf4 {[%clk
0:00:20.7]} 30... Qe7 {[%clk 0:00:57.8]} 31. Ng3 {[%clk 0:00:21.5]} 31... e5
{[%clk 0:00:57]} 32. Qe4 {[%clk 0:00:21.4]} 32... Qd6 {[%clk 0:00:50.7]} 33.
Rfd3 {[%clk 0:00:21.1]} 33... f5 {[%clk 0:00:46.6]} 34. Qxe5 {[%clk 0:00:21.2]}
34... Qxe5 {[%clk 0:00:46.6]} 35. dxe5 {[%clk 0:00:23.1]} 35... Rxd3 {[%clk
0:00:45.6]} 36. Rxd3 {[%clk 0:00:25]} 36... Kf7 {[%clk 0:00:43.9]} 37. Ne2
{[%clk 0:00:23.4]} 37... c5 {[%clk 0:00:43.7]} 38. Nf4 {[%clk 0:00:24.2]} 38...
Ra1+ {[%clk 0:00:40.3]} 39. Kh2 {[%clk 0:00:24]} 39... Ke7 {[%clk 0:00:40.8]}
40. Bg2 {[%clk 0:00:24.4]} 40... Ra7 {[%clk 0:00:39]} 41. Kg3 {[%clk 0:00:24.6]}
41... b6 {[%clk 0:00:40]} 42. Rd6 {[%clk 0:00:24.4]} 42... Ra6 {[%clk
0:00:34.2]} 43. Bb7 {[%clk 0:00:24.5]} 43... Ra3 {[%clk 0:00:29.2]} 44. Rxb6
{[%clk 0:00:25]} 44... Nd7 {[%clk 0:00:27]} 45. Nd5+ {[%clk 0:00:23.7]} 45...
Kd8 {[%clk 0:00:22.6]} 46. Rb5 {[%clk 0:00:21.1]} 46... Nhf8 {[%clk 0:00:20.1]}
47. f4 {[%clk 0:00:21.3]} 47... Ne6 {[%clk 0:00:19.8]} 48. Bc6 {[%clk
0:00:22.4]} 48... Nd4 {[%clk 0:00:17.1]} 49. Bxd7 {[%clk 0:00:23.5]} 49... Kxd7
{[%clk 0:00:13.6]} 50. Rb7+ {[%clk 0:00:24.2]} 50... Kd8 {[%clk 0:00:14.3]} 51.
h5 {[%clk 0:00:23.6]} 51... gxh5 {[%clk 0:00:10.2]} 52. Rxg7 {[%clk 0:00:23]}
52... Rxb3+ {[%clk 0:00:10.8]} 53. Kh4 {[%clk 0:00:22.8]} 53... Ne6 {[%clk
0:00:09.8]} 54. Rg8+ {[%clk 0:00:23]} 54... Kd7 {[%clk 0:00:10]} 55. Kxh5 {[%clk
0:00:23.9]} 55... Rd3 {[%clk 0:00:08.4]} 56. Kg6 {[%clk 0:00:23]} 56... Rd4
{[%clk 0:00:09.2]} 57. Kf6 {[%clk 0:00:23.8]} 57... Nxf4 {[%clk 0:00:09.5]} 58.
Nxf4 {[%clk 0:00:24.9]} 58... Rxf4 {[%clk 0:00:10.4]} 59. g6 {[%clk 0:00:26.4]}
59... Rxc4 {[%clk 0:00:11.1]} 60. e6+ {[%clk 0:00:27.7]} 60... Kc6 {[%clk
0:00:09.8]} 61. e7 {[%clk 0:00:28.2]} 61... Re4 {[%clk 0:00:10.1]} 62. e8=Q+
{[%clk 0:00:29.4]} 1-0

[Event "*** Qualifier 2: Titled Tuesday 3|2 Blitz"]
[Site "Chess.com"]
[Date "2017.04.11"]
[Round "4"]
[White "Sanan_Sjugirov"]
[Black "pKiLz5Rn9b"]
[Result "1-0"]
[WhiteElo "2686"]
[BlackElo "2510"]
[TimeControl "180+2"]
[EndTime "13:53:03 PDT"]
[Termination "Sanan_Sjugirov won by resignation"]

1. d4 {[%clk 0:03:02]} 1... Nf6 {[%clk 0:03:01]} 2. Nf3 {[%clk 0:03:03]} 2... e6
{[%clk 0:03:01.6]} 3. Bg5 {[%clk 0:03:03.8]} 3... h6 {[%clk 0:02:58.1]} 4. Bh4
{[%clk 0:03:04.8]} 4... d5 {[%clk 0:02:56.8]} 5. Nbd2 {[%clk 0:03:04.9]} 5... c5
{[%clk 0:02:57.4]} 6. e3 {[%clk 0:03:05.7]} 6... Nc6 {[%clk 0:02:58.5]} 7. c3
{[%clk 0:03:05.8]} 7... Be7 {[%clk 0:02:52]} 8. Bd3 {[%clk 0:03:06]} 8... O-O
{[%clk 0:02:52.8]} 9. Qe2 {[%clk 0:02:48.4]} 9... cxd4 {[%clk 0:02:49.5]} 10.
exd4 {[%clk 0:02:49]} 10... Nh5 {[%clk 0:02:45.5]} 11. Bxe7 {[%clk 0:02:45.2]}
11... Qxe7 {[%clk 0:02:44]} 12. g3 {[%clk 0:02:46]} 12... Nf6 {[%clk 0:02:37]}
13. O-O {[%clk 0:02:35.9]} 13... Bd7 {[%clk 0:02:33.7]} 14. Ne5 {[%clk
0:02:32.6]} 14... Rab8 {[%clk 0:02:24.5]} 15. Rfe1 {[%clk 0:02:32.2]} 15... Ne8
{[%clk 0:02:08.9]} 16. Bc2 {[%clk 0:02:24.4]} 16... b5 {[%clk 0:01:51]} 17. Qd3
{[%clk 0:02:13.1]} 17... Nf6 {[%clk 0:01:51.9]} 18. a3 {[%clk 0:01:35.4]} 18...
a5 {[%clk 0:01:43.1]} 19. Ng4 {[%clk 0:01:23.1]} 19... g6 {[%clk 0:01:35.9]} 20.
Ne5 {[%clk 0:01:14.1]} 20... Ne8 {[%clk 0:01:24.7]} 21. b4 {[%clk 0:01:11.7]}
21... Nc7 {[%clk 0:00:44.8]} 22. Qe3 {[%clk 0:01:06.7]} 22... Kg7 {[%clk
0:00:36.6]} 23. Nb3 {[%clk 0:00:59.8]} 23... a4 {[%clk 0:00:16.7]} 24. Nc5
{[%clk 0:01:00.2]} 24... Be8 {[%clk 0:00:18.1]} 25. h4 {[%clk 0:00:56.4]} 25...
Nd8 {[%clk 0:00:13.4]} 26. h5 {[%clk 0:00:54.6]} 26... g5 {[%clk 0:00:14.8]} 27.
Qd3 {[%clk 0:00:55]} 27... f5 {[%clk 0:00:16.1]} 28. Qe2 {[%clk 0:00:52.9]}
28... Nb7 {[%clk 0:00:09.2]} 29. Nxb7 {[%clk 0:00:39.4]} 29... Rxb7 {[%clk
0:00:11.1]} 30. Bd3 {[%clk 0:00:39.3]} 30... Rb6 {[%clk 0:00:10.5]} 31. Ra2
{[%clk 0:00:36.2]} 31... Rb8 {[%clk 0:00:10]} 32. Qd1 {[%clk 0:00:29.7]} 32...
Na8 {[%clk 0:00:10.2]} 33. Be2 {[%clk 0:00:18.4]} 33... Nb6 {[%clk 0:00:09.6]}
34. Bf3 {[%clk 0:00:18.8]} 34... Rc8 {[%clk 0:00:08.8]} 35. Rc2 {[%clk
0:00:18.7]} 35... Qf6 {[%clk 0:00:10]} 36. Nd3 {[%clk 0:00:18.5]} 36... Nc4
{[%clk 0:00:09.8]} 37. Nc5 {[%clk 0:00:18.5]} 37... Bf7 {[%clk 0:00:11.3]} 38.
Qc1 {[%clk 0:00:17.7]} 38... Rfe8 {[%clk 0:00:11.9]} 39. Rce2 {[%clk 0:00:16.8]}
39... Rc6 {[%clk 0:00:11.7]} 40. Nd7 {[%clk 0:00:14.5]} 40... Qd8 {[%clk
0:00:10.1]} 41. Nc5 {[%clk 0:00:15.8]} 41... Rd6 {[%clk 0:00:08.3]} 42. Nb7
{[%clk 0:00:16.5]} 42... Qc7 {[%clk 0:00:06.4]} 43. Nxd6 {[%clk 0:00:17.8]}
43... Nxd6 {[%clk 0:00:08.3]} 44. Re5 {[%clk 0:00:17.3]} 44... Rc8 {[%clk
0:00:08.9]} 45. R5e3 {[%clk 0:00:16.2]} 45... Nc4 {[%clk 0:00:10.3]} 46. R3e2
{[%clk 0:00:17.3]} 46... Nd6 {[%clk 0:00:10.9]} 47. Rc2 {[%clk 0:00:18.1]} 47...
Nc4 {[%clk 0:00:09.9]} 48. Be2 {[%clk 0:00:18.4]} 48... Nd6 {[%clk 0:00:11]} 49.
Bd1 {[%clk 0:00:18.3]} 49... Ne4 {[%clk 0:00:12]} 50. Bf3 {[%clk 0:00:16.9]}
50... Nf6 {[%clk 0:00:10.7]} 51. Qd1 {[%clk 0:00:16.7]} 51... g4 {[%clk
0:00:10.3]} 52. Be2 {[%clk 0:00:17.2]} 52... Nxh5 {[%clk 0:00:11.8]} 53. Bxb5
{[%clk 0:00:18]} 53... Nf6 {[%clk 0:00:09.1]} 54. Bd3 {[%clk 0:00:16.8]} 54...
h5 {[%clk 0:00:08.6]} 55. Qd2 {[%clk 0:00:17.9]} 55... Kg6 {[%clk 0:00:08.3]}
56. Qe3 {[%clk 0:00:17.7]} 56... Rh8 {[%clk 0:00:05.2]} 57. Qe5 {[%clk
0:00:18.7]} 57... Qe7 {[%clk 0:00:04.2]} 58. c4 {[%clk 0:00:18.9]} 58... Qd7
{[%clk 0:00:03.9]} 59. c5 {[%clk 0:00:18.4]} 59... h4 {[%clk 0:00:03.7]} 60. c6
{[%clk 0:00:19.7]} 60... Qc8 {[%clk 0:00:04.4]} 61. c7 {[%clk 0:00:20.2]} 61...
hxg3 {[%clk 0:00:05.7]} 62. fxg3 {[%clk 0:00:21]} 62... Rh3 {[%clk 0:00:06.7]}
63. Rh2 {[%clk 0:00:19.9]} 63... Nd7 {[%clk 0:00:05.2]} 64. Qf4 {[%clk
0:00:18.4]} 64... Nf6 {[%clk 0:00:04.1]} 65. Rc1 {[%clk 0:00:16]} 65... Ne8
{[%clk 0:00:03.9]} 66. Qxg4+ {[%clk 0:00:16.6]} 1-0

[Event "*** Qualifier 2: Titled Tuesday 3|2 Blitz"]
[Site "Chess.com"]
[Date "2017.04.11"]
[Round "4"]
[White "Marcus_Harvey"]
[Black "Alexander_Moskalenko"]
[Result "1-0"]
[WhiteElo "2512"]
[BlackElo "2643"]
[TimeControl "180+2"]
[EndTime "13:53:50 PDT"]
[Termination "Marcus_Harvey won on time"]

1. Nf3 {[%clk 0:03:02]} 1... d5 {[%clk 0:03:00.6]} 2. b3 {[%clk 0:03:02.7]} 2...
Nf6 {[%clk 0:03:00.1]} 3. Bb2 {[%clk 0:03:04]} 3... e6 {[%clk 0:03:01.9]} 4. e3
{[%clk 0:03:05.2]} 4... Be7 {[%clk 0:02:59.1]} 5. Be2 {[%clk 0:03:06.6]} 5...
O-O {[%clk 0:03:00.7]} 6. O-O {[%clk 0:03:08.3]} 6... b6 {[%clk 0:03:02.6]} 7.
c4 {[%clk 0:03:09.6]} 7... Bb7 {[%clk 0:03:04.2]} 8. Nc3 {[%clk 0:03:11]} 8...
c5 {[%clk 0:03:03.7]} 9. cxd5 {[%clk 0:03:12.4]} 9... Nxd5 {[%clk 0:03:03.2]}
10. d4 {[%clk 0:03:09]} 10... Nxc3 {[%clk 0:03:03.6]} 11. Bxc3 {[%clk
0:03:09.7]} 11... Bf6 {[%clk 0:03:05]} 12. Rc1 {[%clk 0:03:10]} 12... Nd7 {[%clk
0:03:06.1]} 13. dxc5 {[%clk 0:03:00.6]} 13... Nxc5 {[%clk 0:02:53.1]} 14. Qxd8
{[%clk 0:02:59.7]} 14... Rfxd8 {[%clk 0:02:55]} 15. Bxf6 {[%clk 0:03:00.5]}
15... gxf6 {[%clk 0:02:56.9]} 16. Rfd1 {[%clk 0:02:53.2]} 16... a5 {[%clk
0:02:48.4]} 17. Kf1 {[%clk 0:02:47.9]} 17... Rxd1+ {[%clk 0:02:36.4]} 18. Rxd1
{[%clk 0:02:47.3]} 18... Bd5 {[%clk 0:02:38.3]} 19. Nd4 {[%clk 0:02:43]} 19...
a4 {[%clk 0:02:28.9]} 20. b4 {[%clk 0:02:44.2]} 20... Ne4 {[%clk 0:02:30.5]} 21.
a3 {[%clk 0:02:45.3]} 21... Nc3 {[%clk 0:02:31.5]} 22. Rc1 {[%clk 0:02:43.1]}
22... Nxe2 {[%clk 0:02:24.7]} 23. Kxe2 {[%clk 0:02:36.7]} 23... f5 {[%clk
0:02:19.8]} 24. f3 {[%clk 0:02:32.1]} 24... Kg7 {[%clk 0:02:19]} 25. Rc7 {[%clk
0:02:28.9]} 25... Kf6 {[%clk 0:02:20.1]} 26. Nb5 {[%clk 0:02:26.3]} 26... Rd8
{[%clk 0:02:16.8]} 27. Nc3 {[%clk 0:02:23.9]} 27... Bb3 {[%clk 0:02:16.7]} 28.
e4 {[%clk 0:02:18.6]} 28... fxe4 {[%clk 0:02:11.9]} 29. Nxe4+ {[%clk 0:02:18.6]}
29... Kg6 {[%clk 0:02:13.4]} 30. Nd2 {[%clk 0:02:10.1]} 30... h5 {[%clk
0:02:03.9]} 31. h4 {[%clk 0:01:59.8]} 31... Kf6 {[%clk 0:01:59]} 32. Ne4+ {[%clk
0:01:52.7]} 32... Kg6 {[%clk 0:01:59.6]} 33. Nd2 {[%clk 0:01:45.9]} 33... Rd4
{[%clk 0:01:59.6]} 34. g3 {[%clk 0:01:34.6]} 34... Rd8 {[%clk 0:02:00]} 35. Ke3
{[%clk 0:01:33.2]} 35... b5 {[%clk 0:01:41.8]} 36. Ke2 {[%clk 0:01:30.5]} 36...
f5 {[%clk 0:01:17]} 37. f4 {[%clk 0:01:26.4]} 37... Kf6 {[%clk 0:01:17.2]} 38.
Rc5 {[%clk 0:01:21.2]} 38... Rg8 {[%clk 0:01:11.8]} 39. Kf2 {[%clk 0:01:22.1]}
39... Rd8 {[%clk 0:01:12.3]} 40. Ke2 {[%clk 0:01:21.7]} 40... Rg8 {[%clk
0:00:44]} 41. Kf2 {[%clk 0:01:12.6]} 41... Rd8 {[%clk 0:00:44.9]} 42. Nf3 {[%clk
0:01:13.6]} 42... Bc4 {[%clk 0:00:29.1]} 43. Rc7 {[%clk 0:01:09.2]} 43... e5
{[%clk 0:00:02]} 44. Nxe5 {[%clk 0:01:09.6]} 44... Ke6 {[%clk 0:00:03.9]} 45.
Nxc4 {[%clk 0:01:06.2]} 45... bxc4 {[%clk 0:00:05.8]} 46. Rxc4 {[%clk
0:01:06.8]} 46... Rd3 {[%clk 0:00:05.8]} 47. Rc5 {[%clk 0:00:52.6]} 47... Rxa3
{[%clk 0:00:04.6]} 48. Re5+ {[%clk 0:00:53.6]} 48... Kf6 {[%clk 0:00:04.3]} 49.
Ra5 {[%clk 0:00:54.7]} 49... Ke6 {[%clk 0:00:03.6]} 50. Re5+ {[%clk 0:00:43.4]}
50... Kf6 {[%clk 0:00:03.2]} 51. Rb5 {[%clk 0:00:40.9]} 51... Ra2+ {[%clk
0:00:04.1]} 52. Ke3 {[%clk 0:00:41.4]} 52... Ra3+ {[%clk 0:00:06]} 53. Kd4
{[%clk 0:00:41.8]} 53... Rxg3 {[%clk 0:00:07]} 54. Rb6+ {[%clk 0:00:43.2]} 54...
Ke7 {[%clk 0:00:08.2]} 55. Ke5 {[%clk 0:00:44.5]} 55... Rh3 {[%clk 0:00:08.8]}
56. Rb7+ {[%clk 0:00:45.4]} 56... Kd8 {[%clk 0:00:08.3]} 57. Kxf5 {[%clk
0:00:46.9]} 57... Rxh4 {[%clk 0:00:08.5]} 58. Ra7 {[%clk 0:00:44.4]} 58... Rh1
{[%clk 0:00:08.9]} 59. Rxa4 {[%clk 0:00:45.5]} 59... Rb1 {[%clk 0:00:10.4]} 60.
Kf6 {[%clk 0:00:34.6]} 60... h4 {[%clk 0:00:10.7]} 61. f5 {[%clk 0:00:35.8]}
61... h3 {[%clk 0:00:11.8]} 62. Ra8+ {[%clk 0:00:36.5]} 62... Kd7 {[%clk
0:00:11.6]} 63. Ra7+ {[%clk 0:00:33.5]} 63... Kd6 {[%clk 0:00:11.2]} 64. Rh7
{[%clk 0:00:35.1]} 64... Rb3 {[%clk 0:00:12.5]} 65. Rh4 {[%clk 0:00:27.9]} 65...
Kd5 {[%clk 0:00:11.7]} 66. b5 {[%clk 0:00:18.1]} 66... Kd6 {[%clk 0:00:10.5]}
67. Kf7 {[%clk 0:00:18.1]} 67... Ke5 {[%clk 0:00:11.2]} 68. f6 {[%clk
0:00:19.5]} 68... Rxb5 {[%clk 0:00:12.2]} 69. Rh5+ {[%clk 0:00:20.8]} 69... Kf4
{[%clk 0:00:13.2]} 70. Rxb5 {[%clk 0:00:22]} 70... Kg4 {[%clk 0:00:14.2]} 71.
Rb1 {[%clk 0:00:23.5]} 71... h2 {[%clk 0:00:15.8]} 72. Kg6 {[%clk 0:00:24.4]}
72... h1=Q {[%clk 0:00:17.7]} 73. Rxh1 {[%clk 0:00:24]} 73... Kg3 {[%clk
0:00:18.7]} 74. f7 {[%clk 0:00:24.5]} 74... Kg2 {[%clk 0:00:20.6]} 75. f8=Q
{[%clk 0:00:26]} 1-0

[Event "*** Qualifier 2: Titled Tuesday 3|2 Blitz"]
[Site "Chess.com"]
[Date "2017.04.11"]
[Round "4"]
[White "TheLancer"]
[Black "dhanushbharadwaj"]
[Result "0-1"]
[WhiteElo "2458"]
[BlackElo "2327"]
[TimeControl "180+2"]
[EndTime "13:54:37 PDT"]
[Termination "dhanushbharadwaj won by resignation"]

1. e4 {[%clk 0:03:02]} 1... c5 {[%clk 0:03:00.2]} 2. Nc3 {[%clk 0:03:03.3]} 2...
Nc6 {[%clk 0:02:59.3]} 3. f4 {[%clk 0:03:04.1]} 3... g6 {[%clk 0:02:57.6]} 4.
Nf3 {[%clk 0:03:05.3]} 4... Bg7 {[%clk 0:02:57.6]} 5. Bc4 {[%clk 0:03:07.2]}
5... e6 {[%clk 0:02:57.7]} 6. f5 {[%clk 0:03:08.7]} 6... Nge7 {[%clk 0:02:53.2]}
7. fxe6 {[%clk 0:03:09.3]} 7... dxe6 {[%clk 0:02:51.6]} 8. d3 {[%clk 0:03:11.2]}
8... O-O {[%clk 0:02:51.5]} 9. O-O {[%clk 0:03:12.8]} 9... a6 {[%clk 0:02:51.7]}
10. a4 {[%clk 0:03:13.3]} 10... Bd7 {[%clk 0:02:42.6]} 11. Qe1 {[%clk
0:03:14.2]} 11... Nd4 {[%clk 0:02:41.6]} 12. Nxd4 {[%clk 0:03:15]} 12... cxd4
{[%clk 0:02:42.2]} 13. Ne2 {[%clk 0:03:16.6]} 13... b5 {[%clk 0:02:38.4]} 14.
axb5 {[%clk 0:03:18.1]} 14... axb5 {[%clk 0:02:39.5]} 15. Rxa8 {[%clk 0:03:20]}
15... Qxa8 {[%clk 0:02:40.6]} 16. Bb3 {[%clk 0:03:21.9]} 16... Nc6 {[%clk
0:02:40.2]} 17. Bd2 {[%clk 0:03:22.3]} 17... Qb7 {[%clk 0:02:26.9]} 18. Qh4
{[%clk 0:03:21.4]} 18... Qb6 {[%clk 0:02:12.4]} 19. Rf3 {[%clk 0:03:11.1]} 19...
Qd8 {[%clk 0:01:36.4]} 20. Bg5 {[%clk 0:02:58.7]} 20... Qa5 {[%clk 0:00:57]} 21.
Rf1 {[%clk 0:02:45.5]} 21... Qb6 {[%clk 0:00:37.9]} 22. Bd2 {[%clk 0:02:42.6]}
22... Na5 {[%clk 0:00:37]} 23. Bb4 {[%clk 0:02:43]} 23... Rc8 {[%clk 0:00:24.6]}
24. Qe7 {[%clk 0:02:41.4]} 24... Be8 {[%clk 0:00:22.9]} 25. Bxe6 {[%clk
0:02:32.6]} 25... Qxe6 {[%clk 0:00:12]} 26. Qxe6 {[%clk 0:02:18.6]} 26... fxe6
{[%clk 0:00:13.9]} 27. Bxa5 {[%clk 0:02:19.5]} 27... Rxc2 {[%clk 0:00:15.5]} 28.
Nf4 {[%clk 0:02:20.8]} 28... Bf7 {[%clk 0:00:15.9]} 29. b4 {[%clk 0:02:16.7]}
29... Bh6 {[%clk 0:00:16.9]} 30. e5 {[%clk 0:02:15.5]} 30... Rd2 {[%clk
0:00:16.6]} 31. Bb6 {[%clk 0:02:13.9]} 31... Rb2 {[%clk 0:00:16.2]} 32. Bc5
{[%clk 0:02:13.9]} 32... Rb3 {[%clk 0:00:16.2]} 33. h4 {[%clk 0:02:12.4]} 33...
Bxf4 {[%clk 0:00:15.9]} 34. Rxf4 {[%clk 0:02:14.3]} 34... Rxd3 {[%clk
0:00:17.4]} 35. Bxd4 {[%clk 0:02:16]} 35... Rb3 {[%clk 0:00:18.3]} 36. Bc5
{[%clk 0:02:17]} 36... Kg7 {[%clk 0:00:19.8]} 37. Be7 {[%clk 0:02:16.9]} 37...
Be8 {[%clk 0:00:20.4]} 38. Bf8+ {[%clk 0:02:17.6]} 38... Kg8 {[%clk 0:00:21.2]}
39. Bh6 {[%clk 0:02:19.1]} 39... Bf7 {[%clk 0:00:21.9]} 40. Rd4 {[%clk
0:02:20.8]} 40... Be8 {[%clk 0:00:21.8]} 41. Rf4 {[%clk 0:02:17.7]} 41... Bf7
{[%clk 0:00:22.5]} 42. Kh2 {[%clk 0:02:11.7]} 42... Rc3 {[%clk 0:00:23]} 43. Rd4
{[%clk 0:02:12.6]} 43... Be8 {[%clk 0:00:23.6]} 44. Rd8 {[%clk 0:02:12.9]} 44...
Kf7 {[%clk 0:00:24.5]} 45. Rb8 {[%clk 0:02:14]} 45... Rd3 {[%clk 0:00:25.4]} 46.
Rb7+ {[%clk 0:02:07.9]} 46... Bd7 {[%clk 0:00:26]} 47. Bg5 {[%clk 0:02:04.3]}
47... Rd5 {[%clk 0:00:26.6]} 48. Bf6 {[%clk 0:02:05.4]} 48... h6 {[%clk
0:00:26.5]} 49. Rb8 {[%clk 0:02:05.6]} 49... Be8 {[%clk 0:00:27.6]} 50. Rb7+
{[%clk 0:02:05.3]} 50... Bd7 {[%clk 0:00:28.9]} 51. Kg3 {[%clk 0:02:05.5]} 51...
Rd3+ {[%clk 0:00:29.2]} 52. Kf2 {[%clk 0:02:06.4]} 52... Rd5 {[%clk 0:00:30.4]}
53. Ke3 {[%clk 0:02:06.5]} 53... Rd1 {[%clk 0:00:31]} 54. Rb8 {[%clk 0:02:04.1]}
54... Be8 {[%clk 0:00:31.4]} 55. g4 {[%clk 0:02:01.5]} 55... Rd5 {[%clk
0:00:31.3]} 56. Rc8 {[%clk 0:01:44.4]} 56... Rd1 {[%clk 0:00:30.7]} 57. Rc2
{[%clk 0:01:45]} 57... Rd5 {[%clk 0:00:28.9]} 58. Rf2 {[%clk 0:01:45.8]} 58...
Kg8 {[%clk 0:00:30.1]} 59. Be7 {[%clk 0:01:47]} 59... Bf7 {[%clk 0:00:31.3]} 60.
Bd6 {[%clk 0:01:47.8]} 60... Kg7 {[%clk 0:00:32.1]} 61. Rc2 {[%clk 0:01:44.1]}
61... g5 {[%clk 0:00:25.2]} 62. h5 {[%clk 0:01:43.6]} 62... Rd1 {[%clk
0:00:20.1]} 63. Rc8 {[%clk 0:01:44.5]} 63... Re1+ {[%clk 0:00:15.4]} 64. Kf2
{[%clk 0:01:45.2]} 64... Re4 {[%clk 0:00:16.3]} 65. Bf8+ {[%clk 0:01:46.2]}
65... Kh7 {[%clk 0:00:16.6]} 66. Kg3 {[%clk 0:01:34.3]} 66... Re3+ {[%clk
0:00:17]} 67. Kh2 {[%clk 0:01:33.8]} 67... Re4 {[%clk 0:00:18.3]} 68. Rc7 {[%clk
0:01:30.4]} 68... Rf4 {[%clk 0:00:19.2]} 69. Bc5 {[%clk 0:01:25.8]} 69... Kg8
{[%clk 0:00:19.5]} 70. Rb7 {[%clk 0:01:21.2]} 70... Be8 {[%clk 0:00:20.5]} 71.
Re7 {[%clk 0:01:16.4]} 71... Bf7 {[%clk 0:00:21.2]} 72. Kg3 {[%clk 0:01:15.6]}
72... Rf1 {[%clk 0:00:20.3]} 73. Rb7 {[%clk 0:01:16.3]} 73... Be8 {[%clk
0:00:20.9]} 74. Rb6 {[%clk 0:01:17.8]} 74... Kf7 {[%clk 0:00:20.3]} 75. Rb7+
{[%clk 0:01:15.4]} 75... Kg8 {[%clk 0:00:21.4]} 76. Be7 {[%clk 0:01:13.3]} 76...
Rf4 {[%clk 0:00:21.1]} 77. Bf6 {[%clk 0:01:14.2]} 77... Rxb4 {[%clk 0:00:17.4]}
78. Rg7+ {[%clk 0:01:13.5]} 78... Kf8 {[%clk 0:00:18.5]} 79. Rh7 {[%clk
0:01:14.9]} 79... Rb3+ {[%clk 0:00:18.1]} 80. Kf2 {[%clk 0:01:16.1]} 80... Bf7
{[%clk 0:00:19.4]} 81. Rxh6 {[%clk 0:01:17]} 81... Bg8 {[%clk 0:00:21]} 82. Rg6
{[%clk 0:01:16.4]} 82... b4 {[%clk 0:00:21.2]} 83. Rxg5 {[%clk 0:01:12.6]} 83...
Rb2+ {[%clk 0:00:22.3]} 84. Ke3 {[%clk 0:01:13.4]} 84... b3 {[%clk 0:00:23.6]}
85. Kd3 {[%clk 0:01:12.2]} 85... Rg2 {[%clk 0:00:24]} 86. Be7+ {[%clk 0:00:59]}
86... Kf7 {[%clk 0:00:19]} 87. Ba3 {[%clk 0:00:58.2]} 87... b2 {[%clk
0:00:14.4]} 88. Bxb2 {[%clk 0:00:59.3]} 88... Rxb2 {[%clk 0:00:16]} 89. h6
{[%clk 0:01:01.2]} 89... Bh7+ {[%clk 0:00:15.9]} 90. Kd4 {[%clk 0:01:01.6]}
90... Bg6 {[%clk 0:00:16.7]} 91. h7 {[%clk 0:00:53.8]} 91... Rh2 {[%clk
0:00:15.2]} 92. Ke3 {[%clk 0:00:52.1]} 92... Rxh7 {[%clk 0:00:15.8]} 93. Kf4
{[%clk 0:00:53.6]} 93... Rh1 {[%clk 0:00:16.7]} 94. Kg3 {[%clk 0:00:54.1]} 94...
Ra1 {[%clk 0:00:16.8]} 95. Kh4 {[%clk 0:00:54.3]} 95... Kg7 {[%clk 0:00:17.5]}
96. Kg3 {[%clk 0:00:54.2]} 96... Kh6 {[%clk 0:00:17.9]} 0-1

[Event "*** Qualifier 2: Titled Tuesday 3|2 Blitz"]
[Site "Chess.com"]
[Date "2017.04.11"]
[Round "5"]
[White "oskariot"]
[Black "GMMarcinDziuba"]
[Result "0-1"]
[WhiteElo "2403"]
[BlackElo "2538"]
[TimeControl "180+2"]
[EndTime "14:03:10 PDT"]
[Termination "GMMarcinDziuba won by resignation"]

1. c4 {[%clk 0:03:02]} 1... e6 {[%clk 0:02:57.4]} 2. g3 {[%clk 0:03:02.2]} 2...
d5 {[%clk 0:02:58.3]} 3. Bg2 {[%clk 0:03:03.8]} 3... Nf6 {[%clk 0:02:59.1]} 4.
Nf3 {[%clk 0:03:03.2]} 4... Be7 {[%clk 0:02:58.2]} 5. cxd5 {[%clk 0:03:01.4]}
5... exd5 {[%clk 0:02:58.9]} 6. O-O {[%clk 0:03:03.3]} 6... O-O {[%clk
0:02:59.9]} 7. d3 {[%clk 0:03:05.2]} 7... d4 {[%clk 0:02:56.2]} 8. Nbd2 {[%clk
0:03:01]} 8... c5 {[%clk 0:02:55.4]} 9. Nc4 {[%clk 0:02:58.5]} 9... Be6 {[%clk
0:02:48.4]} 10. Qb3 {[%clk 0:02:35.7]} 10... Bd5 {[%clk 0:02:40.1]} 11. Bf4
{[%clk 0:02:18.7]} 11... b6 {[%clk 0:02:04.1]} 12. a4 {[%clk 0:02:10]} 12... Nc6
{[%clk 0:02:04.9]} 13. Qb5 {[%clk 0:01:45.4]} 13... Nb4 {[%clk 0:01:56.7]} 14.
Nfe5 {[%clk 0:01:12.2]} 14... Bxg2 {[%clk 0:01:57.6]} 15. Kxg2 {[%clk
0:01:14.1]} 15... Nfd5 {[%clk 0:01:55.6]} 16. Bd2 {[%clk 0:01:01.6]} 16... Qc8
{[%clk 0:01:36.1]} 17. a5 {[%clk 0:00:53.2]} 17... f6 {[%clk 0:01:12.4]} 18. Nf3
{[%clk 0:00:51.5]} 18... a6 {[%clk 0:01:08.8]} 19. Nxb6 {[%clk 0:00:29.5]} 19...
axb5 {[%clk 0:01:08.6]} 0-1